bitfinex/quotes_ETHUSD_20241022
["timestamp","ask_amount","ask_price","bid_price","bid_amount"]
[1729619647222,3.81156,2623.6,2623.2,3.81205]
[1729619647519,0.04161353,2623.6,2623.2,3.81205]
[1729619647923,3.85320353,2623.6,2622.9,4.59696]
[1729619648126,3.85320353,2623.6,2623.1,3.81227]
[1729619648498,3.90121,2623.5,2623.0,3.81242]
[1729619648830,3.81211,2623.3,2622.8,1.18698108]
[1729619648981,3.81199,2623.3,2622.8,1.18698108]
[1729619649186,0.04132208,2623.2,2622.8,4.99968108]
[1729619649422,3.85346208,2623.2,2622.8,4.99968108]
[1729619649597,3.81202,2623.3,2622.8,4.99968108]
[1729619649797,0.04126563,2623.1,2622.9,3.8125]
[1729619649985,0.04127689,2623.2,2622.9,3.8125]
[1729619650327,3.81187,2623.4,2622.9,3.8125]
[1729619650629,0.04133333,2623.3,2622.9,3.8125]
[1729619652028,0.04133333,2623.3,2623.0,3.81242]
[1729619652525,0.0895,2623.5,2623.1,3.81226]
[1729619652734,0.0895,2623.5,2623.1,4.61746]
[1729619653024,0.04115561,2623.4,2623.2,3.81207]
[1729619653402,3.90097,2623.7,2623.2,3.81207]
[1729619653602,3.81135,2623.8,2623.3,3.81192]
[1729619653801,0.0895,2623.9,2623.5,3.81167]
[1729619654312,3.90068,2623.9,2623.5,0.7512]
[1729619654758,3.90068,2623.9,2623.5,4.56289]
[1729619655445,0.04138131,2623.8,2623.5,4.56289]
[1729619656920,0.04138131,2623.8,2623.6,3.81155]
[1729619658321,3.81093,2624.1,2623.7,3.81141]
[1729619658535,0.04049746,2624.0,2623.7,3.81141]
[1729619659966,0.0895,2624.2,2623.8,3.81113]
[1729619660123,0.04075105,2624.1,2623.9,3.81109]
[1729619660318,0.04075105,2624.1,2623.9,4.573312]
[1729619661361,0.04075105,2624.1,2623.9,0.762222]
[1729619667929,0.04075105,2624.1,2623.9,4.573332]
[1729619669954,0.04075105,2624.1,2623.9,4.573272]
[1729619670156,3.81018,2624.6,2624.1,3.81075]
[1729619670455,5.52464215,2624.5,2624.0,9.9208068]
[1729619670691,5.48460782,2624.4,2624.1,0.7673]
[1729619671013,0.04006157,2624.3,2624.1,0.7673]
[1729619671362,5.48448782,2624.5,2624.1,4.57811]
[1729619671603,0.04003796,2624.4,2624.1,4.57811]
[1729619672154,0.04003796,2624.4,2624.1,0.7673]
[1729619672698,0.04003796,2624.4,2624.1,4.57812]
[1729619674715,1.71425578,2624.4,2624.1,0.7673]
[1729619678312,1.71425578,2624.4,2624.1,4.57812]
[1729619678805,0.04003796,2624.4,2624.1,4.57812]
[1729619680281,1.71425578,2624.4,2624.1,4.57812]
[1729619680933,0.04003796,2624.4,2624.1,4.57812]
[1729619681158,1.71425578,2624.4,2624.1,4.57812]
[1729619681307,0.04003796,2624.4,2624.1,4.57812]
[1729619685141,0.04003796,2624.4,2624.1,4.57812]
[1729619685849,1.67421782,2624.3,2624.1,0.7673]
[1729619686049,1.71425578,2624.4,2624.1,4.57812]
[1729619686271,0.03996776,2624.2,2624.1,4.57812]
[1729619686473,1.67421782,2624.4,2624.1,4.57812]
[1729619686680,0.03996776,2624.2,2624.1,4.57812]
[1729619686830,1.67421782,2624.4,2624.1,4.57812]
[1729619687032,0.03991977,2624.2,2624.1,4.57812]
[1729619687336,0.039979,2624.2,2624.1,4.57812]
[1729619687547,1.67421782,2624.4,2624.1,4.57812]
[1729619687839,0.04003658,2624.3,2624.1,4.57812]
[1729619689035,5.48447782,2624.5,2624.1,4.57812]
[1729619689375,0.03998019,2624.2,2624.1,4.57812]
[1729619689531,3.81026,2624.5,2624.1,4.57812]
[1729619689883,1.67421782,2624.4,2624.1,4.57812]
[1729619690178,1.71432678,2624.4,2624.1,4.57812]
[1729619690548,0.04010896,2624.4,2624.1,4.57812]
[1729619692287,1.71432678,2624.4,2624.1,4.57812]
[1729619692659,0.04010896,2624.4,2624.1,4.57812]
[1729619693988,1.71432678,2624.4,2624.1,4.57812]
[1729619694490,0.04010896,2624.4,2624.1,4.57812]
[1729619695193,0.04010896,2624.4,2624.1,4.57804]
[1729619696489,0.04010896,2624.4,2624.2,3.81066]
[1729619700313,0.04010896,2624.4,2624.2,7.62127]
[1729619700538,0.04010896,2624.4,2624.2,3.8106]
[1729619702717,0.04010896,2624.4,2624.3,0.2839682]
[1729619702915,0.04010896,2624.4,2624.2,3.8106]
[1729619703584,1.71432678,2624.4,2624.3,0.2840498]
[1729619704429,0.04010896,2624.4,2624.3,0.2840498]
[1729619704589,1.71432678,2624.4,2624.3,0.2840498]
[1729619705114,1.71432678,2624.4,2624.2,3.8106]
[1729619705790,0.04010896,2624.4,2624.2,3.8106]
[1729619709214,0.04010896,2624.4,2624.2,7.62122]
[1729619709519,0.04010896,2624.4,2624.2,3.81068]
[1729619709691,0.04010896,2624.4,2624.3,3.81053]
[1729619710827,0.03512707,2624.4,2624.3,3.81053]
[1729619711266,1.67421782,2624.6,2624.3,3.81053]
[1729619711463,0.03512707,2624.4,2624.3,3.81053]
[1729619711627,1.67421782,2624.6,2624.3,3.81053]
[1729619711822,0.03387946,2624.4,2624.3,3.81053]
[1729619712022,1.67421782,2624.6,2624.3,3.81053]
[1729619712265,0.03387946,2624.4,2624.3,3.81053]
[1729619712765,1.67421782,2624.6,2624.3,3.81053]
[1729619712925,0.03393584,2624.5,2624.3,3.81053]
[1729619714469,0.03387946,2624.4,2624.3,3.81053]
[1729619714851,1.67421782,2624.6,2624.3,3.81053]
[1729619715057,0.03387946,2624.4,2624.3,3.81053]
[1729619715252,1.67421782,2624.5,2624.3,1.18698108]
[1729619715454,0.03387946,2624.4,2624.3,3.81053]
[1729619715962,1.67421782,2624.6,2624.3,3.81053]
[1729619716141,0.03393584,2624.5,2624.3,4.99751108]
[1729619716551,0.03393584,2624.5,2624.3,3.81053]
[1729619717823,0.03393584,2624.5,2624.3,4.99751108]
[1729619718565,0.03393584,2624.5,2624.3,3.81053]
[1729619718784,1.70815366,2624.5,2624.3,3.81053]
[1729619719294,0.03393584,2624.5,2624.3,3.81053]
[1729619719589,0.03393584,2624.5,2624.4,3.81039]
[1729619719789,0.03393584,2624.5,2624.2,1.18698108]
[1729619719991,0.03393584,2624.5,2624.3,7.62098]
[1729619720165,0.03393584,2624.5,2624.3,4.99744108]
[1729619720752,0.03393584,2624.5,2624.3,3.81046]
[1729619720966,0.03282422,2624.5,2624.3,3.81046]
[1729619721559,0.03282422,2624.5,2624.3,8.80791108]
[1729619721987,0.03282422,2624.5,2624.3,3.81046]
[1729619722191,0.03282422,2624.5,2624.2,1.18698108]
[1729619722371,0.03282422,2624.5,2624.2,4.99758108]
[1729619722372,1.67421782,2624.5,2624.2,4.99758108]
[1729619722677,0.03387114,2624.4,2624.2,4.99758108]
[1729619723365,1.70808896,2624.4,2624.2,4.99758108]
[1729619723605,0.03387114,2624.4,2624.2,4.99758108]
[1729619725101,1.67421782,2624.3,2624.1,4.99780108]
[1729619725305,1.67421782,2624.2,2624.1,4.99780108]
[1729619725505,0.03381995,2624.2,2624.1,1.18698108]
[1729619725818,0.0895,2624.4,2624.1,4.99781108]
[1729619725819,1.76371782,2624.4,2624.1,4.99781108]
[1729619725962,0.03381995,2624.2,2624.1,4.99781108]
[1729619726167,1.76371782,2624.4,2624.1,4.99781108]
[1729619726399,0.03387634,2624.3,2624.1,4.99781108]
[1729619727214,1.70809416,2624.3,2624.1,4.99781108]
[1729619728315,0.03387634,2624.3,2624.1,4.99781108]
[1729619730365,0.03387634,2624.3,2624.2,1.18698108]
[1729619730564,1.70809416,2624.3,2624.2,1.18698108]
[1729619730770,7.19284198,2624.3,2624.1,1.18698108]
[1729619730976,5.57439782,2624.2,2623.8,1.18698108]
[1729619731154,1.67421782,2623.9,2623.7,1.18698108]
[1729619731354,0.03599962,2624.1,2623.8,3.81126]
[1729619731528,1.67421782,2624.0,2623.8,4.99824108]
[1729619731726,0.03599962,2624.1,2623.7,4.99838108]
[1729619731936,0.01,2624.9,2624.1,3.81075]
[1729619731937,0.0895,2624.4,2624.1,3.81075]
[1729619732167,0.0895,2624.4,2623.8,2.04360582]
[1729619732168,3.81031,2624.5,2624.0,4.99793108]
[1729619732372,1.67421782,2624.4,2624.0,4.99793108]
[1729619732669,1.67421782,2624.3,2624.0,4.99793108]
[1729619733032,1.67421782,2624.4,2624.1,4.99771108]
[1729619733230,1.67421782,2624.4,2624.1,6.03591635]
[1729619733538,1.67421782,2624.4,2624.1,6.81631635]
[1729619734036,1.67421782,2624.4,2624.1,5.62933527]
[1729619734746,3.89968,2624.6,2624.1,5.62933527]
[1729619734947,3.89968,2624.6,2624.2,3.81061]
[1729619734948,1.67421782,2624.5,2624.2,3.81061]
[1729619735268,1.67421782,2624.5,2624.2,5.37309574]
[1729619735470,1.67421782,2624.5,2624.3,3.81053]
[1729619736291,1.67421782,2624.5,2624.2,5.37315574]
[1729619739885,1.67421782,2624.5,2624.3,4.92565668]
[1729619740085,1.67421782,2624.4,2624.3,3.81053]
[1729619740872,0.63987382,2624.4,2624.3,3.81053]
[1729619741074,1.67421782,2624.4,2624.3,3.81053]
[1729619742085,1.67421782,2624.4,2624.2,1.18698108]
[1729619742258,1.67421782,2624.4,2624.2,4.99765108]
[1729619742574,1.67421782,2624.4,2624.2,6.11387236]
[1729619742899,1.67421782,2624.7,2624.4,4.60552]
[1729619743052,1.67421782,2624.7,2624.4,5.7978608]
[1729619743396,3.80978,2624.9,2624.5,3.81024]
[1729619743397,1.67421782,2624.8,2624.5,3.81024]
[1729619743565,3.80978,2624.9,2624.5,3.81024]
[1729619743882,3.89908,2625.0,2624.6,3.8101]
[1729619744084,3.8094,2625.1,2624.6,3.81002]
[1729619744385,1.67421782,2624.7,2624.5,1.1923408]
[1729619744557,1.67421782,2624.7,2624.5,3.81017]
[1729619745380,1.67421782,2624.8,2624.6,3.8101]
[1729619745547,1.67421782,2624.7,2624.6,3.8101]
[1729619746490,1.67421782,2624.8,2624.6,3.8101]
[1729619746851,1.67421782,2624.7,2624.6,3.8101]
[1729619747288,3.89875,2625.2,2624.6,3.8101]
[1729619747457,5.48339782,2625.3,2624.8,4.57121]
[1729619747784,1.67421782,2625.5,2625.1,4.5708]
[1729619747983,1.67421782,2625.5,2625.2,3.80917]
[1729619748190,3.80874,2625.6,2625.2,3.80917]
[1729619748191,1.67421782,2625.4,2625.2,3.80917]
[1729619749273,1.67421782,2625.3,2625.1,4.57087]
[1729619749777,1.67421782,2625.4,2625.1,4.57087]
[1729619749979,3.80874,2625.6,2625.1,8.38024]
[1729619750175,1.67421782,2625.4,2625.1,4.57087]
[1729619750824,1.67421782,2625.4,2625.1,9.50485886]
[1729619751117,1.67421782,2625.4,2625.1,5.69548886]
[1729619751495,1.67421782,2625.4,2625.1,9.50479886]
[1729619752995,1.67421782,2625.4,2625.1,5.69548886]
[1729619753521,1.67421782,2625.4,2625.1,9.50475886]
[1729619755025,3.80874,2625.6,2625.1,9.50475886]
[1729619755227,1.67421782,2625.4,2625.1,9.50475886]
[1729619755585,1.67421782,2625.4,2625.2,3.80921]
[1729619755883,1.67421782,2625.5,2625.2,3.80921]
[1729619756305,1.67421782,2625.4,2625.2,3.80921]
[1729619757954,1.67421782,2625.4,2625.1,5.69546886]
[1729619758164,1.67421782,2625.3,2625.1,4.57077]
[1729619758959,1.67421782,2625.3,2625.1,8.38006]
[1729619760172,1.67421782,2625.4,2625.1,8.38006]
[1729619760752,1.67421782,2625.4,2625.1,4.57077]
[1729619760954,1.67421782,2625.4,2625.1,8.38007]
[1729619762581,1.67421782,2625.4,2625.1,4.57077]
[1729619762779,1.67421782,2625.4,2625.2,3.80922]
[1729619762982,1.67421782,2625.4,2625.1,4.57087]
[1729619763682,1.67421782,2625.4,2625.1,8.38016]
[1729619764189,1.67421782,2625.4,2625.1,4.57079]
[1729619764342,1.67421782,2625.2,2624.9,4.56975]
[1729619764691,1.67421782,2625.2,2624.9,8.37934]
[1729619764981,1.67421782,2625.3,2625.0,3.8095]
[1729619765988,1.67421782,2625.2,2625.0,3.8095]
[1729619766292,1.67421782,2625.1,2624.8,3.80973]
[1729619766789,1.67421782,2625.1,2624.9,3.80964]
[1729619767894,1.67421782,2625.0,2624.7,3.80992]
[1729619768103,1.67421782,2624.8,2624.5,0.807]
[1729619768254,1.67421782,2624.8,2624.6,3.8101]
[1729619769276,1.67421782,2624.8,2624.5,4.61722]
[1729619769998,1.67421782,2624.8,2624.5,8.4274]
[1729619770303,1.67421782,2624.8,2624.6,3.8101]
[1729619770682,1.67421782,2624.8,2624.5,4.61722]
[1729619770855,1.67421782,2624.8,2624.6,3.8101]
[1729619771499,1.67421782,2624.8,2624.5,4.61719]
[1729619772613,1.67421782,2624.9,2624.5,4.61719]
[1729619773103,1.67421782,2624.9,2624.6,3.81009]
[1729619775096,1.67421782,2625.2,2624.9,3.80964]
[1729619775311,1.67421782,2625.2,2624.9,0.8318]
[1729619775515,1.67421782,2625.2,2625.0,3.80945]
[1729619776226,1.67421782,2625.1,2624.9,4.64138]
[1729619776576,1.67421782,2625.1,2625.0,3.80952]
[1729619776989,1.67421782,2625.1,2624.9,4.64138]
[1729619777598,1.67421782,2625.1,2624.9,0.8318]
[1729619777800,1.67421782,2625.1,2625.0,3.80952]
[1729619778202,1.67421782,2625.1,2624.9,0.8318]
[1729619778518,1.67421782,2625.0,2624.8,7.6194]
[1729619778892,1.67421782,2625.0,2624.8,3.80967]
[1729619781229,0.0895,2625.1,2624.8,7.6194]
[1729619781230,1.76371782,2625.1,2624.8,7.6194]
[1729619781681,1.76371782,2625.1,2624.9,3.80965]
[1729619782029,1.67421782,2625.1,2624.9,3.80965]
[1729619783435,1.67421782,2625.1,2624.8,3.8098]
[1729619783727,3.89869,2625.3,2624.8,3.8098]
[1729619783728,1.67421782,2625.0,2624.8,3.8098]
[1729619784020,1.67421782,2625.0,2624.5,1.1923408]
[1729619784021,1.76371782,2624.9,2624.5,4.56642]
[1729619784323,1.67421782,2624.8,2624.5,4.56642]
[1729619784819,1.67421782,2624.7,2624.3,0.8319]
[1729619785005,1.67421782,2624.6,2624.4,3.81032]
[1729619785209,1.67421782,2624.6,2624.3,4.64237]
[1729619785429,1.67421782,2624.5,2624.3,4.64237]
[1729619785628,1.67421782,2624.5,2624.3,3.81047]
[1729619785836,0.0895,2624.7,2624.1,3.81079]
[1729619785837,1.67421782,2624.4,2624.1,3.81079]
[1729619786281,1.67421782,2624.3,2624.1,3.81079]
[1729619786498,1.67421782,2624.4,2624.2,3.81068]
[1729619786960,1.67421782,2624.3,2624.0,0.763]
[1729619787240,0.0895,2624.3,2624.0,3.81096]
[1729619787402,1.76371782,2624.3,2624.0,3.81096]
[1729619788532,1.76371782,2624.3,2624.1,3.8108]
[1729619789063,0.0895,2624.3,2624.1,3.8108]
[1729619789342,1.76371782,2624.3,2624.0,3.81096]
[1729619791299,1.76371782,2624.3,2623.8,4.57417]
[1729619791504,1.67421782,2624.2,2623.8,4.57417]
[1729619791747,1.67421782,2624.2,2623.8,4.65038698]
[1729619791899,1.76371782,2624.3,2623.9,3.81099]
[1729619792759,0.0895,2624.5,2624.0,5.48516782]
[1729619792963,1.67421782,2624.5,2624.2,4.57359]
[1729619796047,3.89947,2624.7,2624.2,4.57359]
[1729619796229,1.67421782,2624.6,2624.2,4.57359]
[1729619799276,1.67421782,2624.5,2624.2,4.57359]
[1729619801073,1.67421782,2624.5,2624.2,0.763]
[1729619801277,1.67421782,2624.4,2624.1,3.81073]
[1729619807691,1.67421782,2624.5,2624.1,3.81073]
[1729619807911,1.67421782,2624.4,2624.1,3.81073]
[1729619810302,0.0895,2624.3,2624.0,4.61476]
[1729619810601,0.0895,2624.3,2624.0,5.54575715]
[1729619810772,1.67421782,2624.4,2624.0,5.54575715]
[1729619811709,1.67421782,2624.3,2623.9,3.81109]
[1729619812009,5.48468782,2624.4,2623.9,3.81109]
[1729619812506,3.81054,2624.3,2623.8,3.81124]
[1729619813116,5.48465782,2624.4,2623.9,3.81106]
[1729619813682,1.76371782,2624.5,2624.1,3.81078]
[1729619813881,5.57396782,2624.5,2624.0,4.63676]
[1729619816325,0.0895,2624.5,2624.1,3.81076]
[1729619816828,1.76371782,2624.5,2624.1,3.81076]
[1729619818430,1.76371782,2624.5,2624.0,4.63676]
[1729619818599,1.76371782,2624.5,2624.1,3.81082]
[1729619819031,1.76371782,2624.5,2624.0,4.63676]
[1729619819325,1.67421782,2624.4,2624.0,4.6367]
[1729619819732,1.67421782,2624.4,2624.1,3.81082]
[1729619820544,1.67421782,2624.4,2624.0,8.44762]
[1729619820841,1.67421782,2624.4,2624.0,4.63667]
[1729619821339,1.67421782,2624.4,2624.1,3.81081]
[1729619821566,1.67421782,2624.4,2624.0,0.8258]
[1729619821751,1.67421782,2624.4,2624.0,4.83216759]
[1729619821909,1.67421782,2624.4,2624.1,3.81081]
[1729619822246,1.67421782,2624.4,2624.0,4.63669]
[1729619822646,5.57399782,2624.5,2624.0,4.63669]
[1729619822847,1.76371782,2624.5,2624.1,3.81076]
[1729619823161,0.0895,2624.5,2624.1,3.81076]
[1729619825792,0.0895,2624.5,2624.2,3.81068]
[1729619827377,1.76371782,2624.5,2624.2,3.81068]
[1729619827898,0.0895,2624.5,2624.2,3.81068]
[1729619828263,1.76371782,2624.5,2624.2,3.81068]
[1729619828795,0.0895,2624.5,2624.2,3.81068]
[1729619830264,0.0895,2624.5,2624.2,4.77454608]
[1729619830465,3.89939,2624.8,2624.3,3.81043]
[1729619830667,5.57360782,2624.8,2624.3,3.81043]
[1729619831400,3.89939,2624.8,2624.4,3.81032]
[1729619831722,0.0895,2625.0,2624.4,2.41367031]
[1729619831920,3.89861,2625.3,2624.9,1.67421782]
[1729619832086,3.89861,2625.3,2624.9,3.80959]
[1729619832282,3.89861,2625.3,2624.9,4.59709]
[1729619832511,0.0895,2625.3,2625.0,3.80938]
[1729619832709,1.67421782,2625.5,2625.0,3.8095]
[1729619832918,1.67421782,2625.4,2625.0,5.0018408]
[1729619833227,1.67421782,2625.4,2625.0,10.22442143]
[1729619833387,5.48302782,2625.5,2625.0,5.22258063]
[1729619833582,5.48302782,2625.5,2625.0,9.03199063]
[1729619833583,1.67421782,2625.4,2625.0,9.03199063]
[1729619834140,1.67421782,2625.4,2625.0,5.22255063]
[1729619834419,1.67421782,2625.4,2625.0,9.03199063]
[1729619834628,5.48302782,2625.5,2625.1,1.10118314]
[1729619836840,1.67421782,2625.4,2625.1,1.10118314]
[1729619838739,1.67421782,2625.4,2625.0,3.80941]
[1729619839733,1.67421782,2625.4,2624.9,0.7875]
[1729619840006,1.67421782,2625.2,2624.9,4.59707]
[1729619840820,1.67421782,2625.3,2625.0,3.80952]
[1729619841146,1.67421782,2625.3,2625.1,0.459702]
[1729619843022,1.67421782,2625.3,2624.9,4.59709]
[1729619843766,1.67421782,2625.3,2625.0,3.8095]
[1729619844109,1.67421782,2625.1,2624.7,4.58044]
[1729619844419,5.48361782,2625.1,2624.7,1.228644]
[1729619844811,1.67421782,2625.1,2624.7,1.228644]
[1729619845207,1.67421782,2625.1,2624.7,5.038574]
[1729619845426,5.57301782,2625.2,2624.8,1.1848654]
[1729619845848,1.67421782,2625.1,2624.8,1.1848654]
[1729619846044,3.8988,2625.2,2624.5,1.67421782]
[1729619846045,5.48377782,2625.0,2624.5,0.8029]
[1729619846243,1.67421782,2625.0,2624.6,3.81008]
[1729619846604,5.48372782,2625.1,2624.6,3.81008]
[1729619846822,1.67421782,2625.0,2624.6,3.81004]
[1729619847030,5.48372782,2625.1,2624.6,4.77402773]
[1729619847264,1.67421782,2625.0,2624.6,4.77402773]
[1729619847474,1.67421782,2625.0,2624.6,4.77400773]
[1729619847671,5.48372782,2625.1,2624.6,4.77400773]
[1729619848256,1.67421782,2625.1,2624.6,4.77400773]
[1729619848463,1.67421782,2625.1,2624.7,3.80987]
[1729619849332,5.48360782,2625.1,2624.7,3.80987]
[1729619850435,5.48360782,2625.1,2624.6,4.77406773]
[1729619850634,1.67421782,2625.0,2624.5,4.61312]
[1729619850835,5.48379782,2625.0,2624.5,4.61312]
[1729619851075,3.80958,2625.0,2624.5,8.42329]
[1729619851278,3.80958,2625.0,2624.5,4.61307]
[1729619851779,5.48379782,2625.0,2624.5,4.61307]
[1729619852391,3.80958,2625.0,2624.5,4.61307]
[1729619853133,3.80958,2625.0,2624.5,8.42325]
[1729619854282,3.80958,2625.0,2624.6,0.07619404]
[1729619855605,3.80958,2625.0,2624.6,3.88629404]
[1729619856142,3.80958,2625.0,2624.6,3.8101]
[1729619856767,5.48379782,2625.0,2624.6,3.8101]
[1729619857158,3.80958,2625.0,2624.6,3.8101]
[1729619857357,5.48379782,2625.0,2624.6,3.8101]
[1729619858755,1.67421782,2624.9,2624.5,4.61307]
[1729619858990,5.57340782,2624.9,2624.5,4.61307]
[1729619859296,1.67421782,2624.6,2624.3,4.56081]
[1729619859589,3.80987,2624.8,2624.3,4.56081]
[1729619859590,3.80988,2624.8,2624.3,4.56081]
[1729619859795,1.67421782,2624.7,2624.3,4.56081]
[1729619860178,5.48425782,2624.7,2624.3,0.7503]
[1729619860345,1.67421782,2624.6,2624.3,0.7503]
[1729619860541,1.67421782,2624.7,2624.4,3.81038]
[1729619861180,1.67421782,2624.8,2624.4,3.81038]
[1729619862746,1.76371782,2624.9,2624.4,3.81029]
[1729619862979,5.57310782,2625.1,2624.6,3.81]
[1729619863286,5.48375782,2625.0,2624.6,3.8101]
[1729619863492,1.67421782,2624.9,2624.6,3.8101]
[1729619864076,5.48375782,2625.0,2624.6,3.8101]
[1729619864456,1.67421782,2624.9,2624.6,3.8101]
[1729619865037,1.67421782,2625.0,2624.6,3.8101]
[1729619865240,1.67421782,2625.0,2624.4,3.81031]
[1729619865463,1.67421782,2625.0,2624.5,0.62348278]
[1729619865667,1.67421782,2625.0,2624.6,3.81009]
[1729619866645,5.48374782,2625.0,2624.6,3.81009]
[1729619866961,1.67421782,2625.0,2624.6,3.81009]
[1729619873038,5.48373782,2625.0,2624.6,3.81009]
[1729619873437,3.80952,2625.0,2624.6,3.81009]
[1729619873880,5.57311782,2625.1,2624.6,7.62011]
[1729619874055,1.67421782,2625.0,2624.6,3.81002]
[1729619875874,1.67421782,2624.9,2624.5,4.43372278]
[1729619876074,1.67421782,2624.9,2624.5,3.81024]
[1729619876445,1.76371782,2624.8,2624.5,3.81024]
[1729619878281,0.0895,2624.8,2624.5,3.81024]
[1729619878781,1.76371782,2624.8,2624.5,3.81024]
[1729619879076,0.0895,2624.8,2624.5,3.81024]
[1729619883256,0.0895,2624.8,2624.6,0.28286318]
[1729619883499,0.0895,2624.8,2624.5,3.81024]
[1729619883669,0.0895,2624.8,2624.6,0.28286254]
[1729619883999,0.0895,2624.8,2624.5,3.81024]
[1729619884363,0.0895,2624.8,2624.6,0.28288334]
[1729619884566,0.0895,2624.8,2624.5,3.81024]
[1729619884769,0.0895,2624.8,2624.6,0.28287759]
[1729619884983,0.0895,2624.8,2624.5,3.81024]
[1729619885186,0.0895,2624.8,2624.6,0.28292883]
[1729619885364,0.0895,2624.8,2624.5,3.81024]
[1729619887767,0.0895,2624.8,2624.5,3.81019]
[1729619888402,0.0895,2624.8,2624.5,3.81016]
[1729619888578,0.0895,2624.8,2624.5,5.0025008]
[1729619890315,0.0895,2624.8,2624.5,3.81016]
[1729619890468,0.0895,2624.8,2624.5,5.0025008]
[1729619894015,0.0895,2624.8,2624.5,8.8126708]
[1729619894214,0.0895,2624.8,2624.5,5.0025008]
[1729619897122,3.80932,2625.2,2624.5,6.01358735]
[1729619897293,0.01,2625.6,2624.9,3.8096]
[1729619897294,1.67421782,2625.4,2624.9,3.8096]
[1729619897618,8.48302782,2625.5,2625.0,0.7838]
[1729619897828,1.67421782,2625.4,2625.0,4.59331]
[1729619898377,1.67421782,2625.4,2625.0,0.7838]
[1729619898378,5.48315782,2625.4,2625.0,0.7838]
[1729619898783,1.67421782,2625.3,2625.0,0.7838]
[1729619899458,5.48330782,2625.3,2625.0,0.7838]
[1729619899619,1.67421782,2625.2,2625.0,0.7838]
[1729619900919,1.67421782,2625.1,2625.0,0.7838]
[1729619901086,1.67421782,2625.2,2625.0,0.7838]
[1729619901287,5.48330782,2625.3,2625.0,0.7838]
[1729619901818,1.67421782,2625.2,2625.0,0.7838]
[1729619902181,5.48330782,2625.3,2625.0,0.7838]
[1729619905743,3.80941,2625.1,2624.7,1.1923408]
[1729619906041,1.67421782,2624.8,2624.6,1.18778736]
[1729619906251,1.67421782,2625.0,2624.6,4.99783736]
[1729619906401,9.29312782,2625.1,2624.6,6.99790605]
[1729619906605,5.48363782,2625.1,2624.6,6.99790605]
[1729619906806,9.29313782,2625.1,2624.6,6.99790605]
[1729619907044,9.29313782,2625.1,2624.6,5.81011869]
[1729619907342,5.48374782,2625.0,2624.6,2.00006869]
[1729619907548,5.48359782,2625.1,2624.7,0.43751158]
[1729619907904,5.48359782,2625.1,2624.7,4.24746158]
[1729619908245,1.67421782,2625.1,2624.7,4.24746158]
[1729619908918,1.67421782,2625.1,2624.7,5.43524894]
[1729619909522,1.67421782,2625.1,2624.7,4.24746158]
[1729619910230,1.67421782,2625.1,2624.8,0.71008633]
[1729619910543,5.48347782,2625.2,2624.7,5.43524894]
[1729619912748,5.48347782,2625.2,2624.7,5.43516894]
[1729619913105,1.67421782,2625.2,2624.9,0.7901]
[1729619915249,1.67421782,2625.1,2624.9,0.7901]
[1729619915431,1.67421782,2625.2,2624.9,0.7901]
[1729619915642,5.48345782,2625.2,2624.9,0.7901]
[1729619916962,1.67421782,2625.1,2624.9,0.7901]
[1729619921706,3.89768,2626.0,2625.3,3.80902]
[1729619921914,3.89768,2626.0,2625.6,0.7956]
[1729619922137,5.48208782,2626.2,2625.6,5.86772902]
[1729619922138,3.80794,2626.1,2625.6,5.86772902]
[1729619922367,3.8081,2626.0,2625.6,0.7956]
[1729619923031,3.8081,2626.0,2625.6,4.60424]
[1729619923334,1.67421782,2625.9,2625.6,1.8016963]
[1729619923666,1.67421782,2626.0,2625.6,5.6103063]
[1729619923867,3.80794,2626.1,2625.6,5.6864702]
[1729619924179,1.67421782,2626.1,2625.7,3.80849]
[1729619924384,1.67421782,2626.0,2625.7,3.80849]
[1729619924540,1.67421782,2626.1,2625.7,3.80849]
[1729619925886,1.67421782,2626.1,2625.6,1.8016963]
[1729619926242,1.67421782,2626.1,2625.7,0.72846041]
[1729619926686,0.0895,2626.7,2626.1,0.7672]
[1729619926848,1.67421782,2626.8,2626.3,0.7672]
[1729619927195,3.80709,2626.7,2626.3,0.7672]
[1729619927388,5.48130782,2626.7,2626.3,0.7672]
[1729619927743,1.67421782,2626.7,2626.3,0.7672]
[1729619928343,5.48127782,2626.7,2626.3,0.7672]
[1729619928749,1.67421782,2626.7,2626.3,0.7672]
[1729619928971,1.67421782,2626.6,2626.3,0.7672]
[1729619929532,1.67421782,2626.5,2626.3,0.7672]
[1729619929704,1.67421782,2626.5,2625.8,3.0]
[1729619929705,0.0895,2626.3,2625.6,0.7672]
[1729619929849,1.67421782,2625.9,2625.6,0.7672]
[1729619930050,3.80814,2626.0,2625.6,0.7672]
[1729619930249,3.80794,2626.1,2625.6,1.524814]
[1729619930498,3.80865,2625.6,2625.0,4.99696103]
[1729619930820,3.80865,2625.6,2624.9,2.34059167]
[1729619930821,3.80865,2625.6,2624.9,4.57677]
[1729619931197,3.80865,2625.6,2625.0,3.80952]
[1729619931198,5.48286782,2625.6,2625.0,3.80952]
[1729619931781,5.48286782,2625.6,2625.1,3.0]
[1729619931968,5.48286782,2625.6,2625.1,3.757672]
[1729619932175,1.67421782,2625.2,2625.1,3.757672]
[1729619932364,3.39801354,2625.2,2625.1,3.757672]
[1729619933374,3.89768,2626.0,2625.2,0.7959]
[1729619933700,3.89768,2626.0,2625.3,3.809]
[1729619933701,3.80822,2625.9,2625.3,3.809]
[1729619934359,7.29569354,2626.0,2625.3,3.809]
[1729619934560,3.39801354,2625.4,2625.3,3.809]
[1729619934763,3.39801354,2625.4,2625.3,4.7261852]
[1729619935059,3.39801354,2625.4,2625.3,0.9171852]
[1729619940733,3.39801354,2625.4,2624.9,4.19745103]
[1729619940734,3.39801354,2625.4,2624.9,1.18745103]
[1729619940935,3.39801354,2625.4,2624.7,2.01090325]
[1729619940936,3.39801354,2625.4,2625.1,0.7621]
[1729619941144,3.39801354,2625.2,2625.1,0.7621]
[1729619947464,3.39801354,2625.6,2625.1,0.7621]
[1729619947669,3.8088,2625.5,2625.1,0.7621]
[1729619949485,7.20668354,2625.6,2625.1,0.7621]
[1729619952579,3.8981,2625.7,2625.1,0.7621]
[1729619952775,1.6726161,2625.4,2625.1,1.219274]
[1729619952930,3.8086,2625.7,2625.1,1.219274]
[1729619952931,1.6726161,2625.3,2625.1,1.219274]
[1729619954373,1.6726161,2625.2,2625.1,1.219274]